bitfinex/quotes_BTCUSD_20250830
["timestamp","ask_amount","ask_price","bid_price","bid_amount"]
[1756568729752,0.57265353,109130.0,109120.0,0.25318]
[1756568729974,0.57265353,109130.0,109120.0,0.40734]
[1756568730147,0.57265353,109130.0,109120.0,0.2552]
[1756568730352,0.57265353,109130.0,109120.0,0.40738]
[1756568730571,0.57265353,109130.0,109120.0,0.4094]
[1756568730970,0.57265353,109130.0,109120.0,0.2552]
[1756568731200,0.22902648,109130.0,109120.0,0.4094]
[1756568731399,0.57265353,109130.0,109120.0,0.4094]
[1756568732360,0.57910674,109130.0,109120.0,0.4094]
[1756568733144,0.22902648,109130.0,109120.0,0.4094]
[1756568733348,0.57265353,109130.0,109120.0,0.4094]
[1756568733752,0.57265353,109130.0,109120.0,0.4092]
[1756568733957,0.22902648,109130.0,109120.0,0.4092]
[1756568734162,0.57265353,109130.0,109120.0,0.4092]
[1756568734386,0.22902648,109130.0,109120.0,0.4092]
[1756568734813,0.57265353,109130.0,109120.0,0.4092]
[1756568735234,0.22902648,109130.0,109120.0,0.255]
[1756568735411,0.22902648,109130.0,109120.0,0.40928]
[1756568735667,0.57265353,109130.0,109120.0,0.40928]
[1756568735881,0.22902648,109130.0,109120.0,0.40928]
[1756568736091,0.22903427,109130.0,109120.0,0.40928]
[1756568736504,0.57266132,109130.0,109120.0,0.40928]
[1756568737128,0.22903427,109130.0,109120.0,0.40928]
[1756568737743,0.22903427,109130.0,109120.0,0.255]
[1756568737952,0.65013476,109130.0,109120.0,0.4118]
[1756568738161,0.22903427,109130.0,109120.0,0.4118]
[1756568738363,0.57266132,109130.0,109120.0,0.4118]
[1756568738984,0.57266132,109130.0,109120.0,0.412]
[1756568739404,0.22903427,109130.0,109120.0,0.412]
[1756568739574,0.57266132,109130.0,109120.0,0.412]
[1756568739784,0.22903427,109130.0,109120.0,0.255]
[1756568739989,0.57911505,109130.0,109120.0,0.40998]
[1756568740850,0.66741137,109130.0,109120.0,0.4068]
[1756568741064,0.66741137,109130.0,109120.0,0.40998]
[1756568741487,0.66741137,109130.0,109120.0,0.412]
[1756568741691,0.57911505,109130.0,109120.0,0.412]
[1756568741893,0.57911505,109130.0,109120.0,0.4118847]
[1756568742510,0.235488,109130.0,109120.0,0.4118847]
[1756568742972,0.57266132,109130.0,109120.0,0.4118847]
[1756568743389,0.22903427,109130.0,109120.0,0.4118847]
[1756568743597,0.57266132,109130.0,109120.0,0.4118847]
[1756568744215,0.22903427,109130.0,109120.0,0.4118847]
[1756568744443,0.57266132,109130.0,109120.0,0.4118847]
[1756568746663,0.21182466,109130.0,109120.0,0.4118847]
[1756568746938,0.57266014,109130.0,109120.0,0.4118847]
[1756568749823,0.65013346,109130.0,109120.0,0.4098647]
[1756568750030,0.65658664,109130.0,109120.0,0.4118847]
[1756568750395,0.23548627,109130.0,109120.0,0.4118847]
[1756568750619,0.57911332,109130.0,109120.0,0.4118847]
[1756568750957,0.57911332,109130.0,109120.0,0.4098647]
[1756568751572,0.57911332,109130.0,109120.0,0.4118847]
[1756568753009,0.57911332,109130.0,109120.0,0.4066847]
[1756568753217,0.66740964,109130.0,109120.0,0.4064847]
[1756568753639,1.02723414,109130.0,109120.0,0.2496847]
[1756568753862,1.10800529,109130.0,109120.0,0.2496847]
[1756568754109,1.10800792,109130.0,109120.0,0.4066047]
[1756568754715,1.10800792,109130.0,109120.0,0.15692]
[1756568755588,0.18328445,109120.0,109110.0,0.07048001]
[1756568755807,0.99869656,109120.0,109110.0,0.22744001]
[1756568756256,1.02625856,109120.0,109110.0,0.22744001]
[1756568756469,1.00643406,109120.0,109110.0,0.22744001]
[1756568756911,0.91813774,109120.0,109110.0,0.23042001]
[1756568757132,0.57451069,109120.0,109110.0,0.23244001]
[1756568757345,0.91813774,109120.0,109110.0,0.23244001]
[1756568757551,0.91813774,109120.0,109110.0,0.48244001]
[1756568757755,0.91810286,109120.0,109110.0,0.48244001]
[1756568758434,0.91810172,109120.0,109110.0,0.48244001]
[1756568758644,1.00639804,109120.0,109110.0,0.48244001]
[1756568758820,1.00639804,109120.0,109110.0,0.48042001]
[1756568760165,0.66277099,109120.0,109110.0,0.48244001]
[1756568760365,0.57447467,109120.0,109110.0,0.48244001]
[1756568760578,0.91810172,109120.0,109110.0,0.48244001]
[1756568760792,0.91810172,109120.0,109110.0,0.47744001]
[1756568761005,0.91810057,109120.0,109110.0,0.47744001]
[1756568761235,0.93789085,109120.0,109110.0,0.47740001]
[1756568761444,0.98037621,109120.0,109110.0,0.47740001]
[1756568761666,0.96058593,109120.0,109110.0,0.22740001]
[1756568762090,0.9803736,109120.0,109110.0,0.22740001]
[1756568762519,0.9803736,109120.0,109110.0,0.22736001]
[1756568762739,0.9803736,109120.0,109110.0,0.07048001]
[1756568762955,0.9803736,109120.0,109110.0,0.22736001]
[1756568763830,0.9813736,109120.0,109110.0,0.22736001]
[1756568764038,0.96158593,109120.0,109110.0,0.22736001]
[1756568765301,0.98136607,109120.0,109110.0,0.22736001]
[1756568766136,0.98136607,109120.0,109110.0,0.22728001]
[1756568766970,1.06255713,109120.0,109110.0,0.22728001]
[1756568767157,1.06253997,109120.0,109110.0,0.22728001]
[1756568767370,1.0625358,109120.0,109110.0,0.22728001]
[1756568767932,0.71890875,109120.0,109110.0,0.15680001]
[1756568768155,1.0625358,109120.0,109110.0,0.15680001]
[1756568768561,1.0625358,109120.0,109110.0,1e-08]
[1756568769060,1.0625358,109120.0,109110.0,0.15692001]
[1756568769930,1.02005044,109120.0,109110.0,0.15990001]
[1756568771707,1.02005044,109120.0,109110.0,0.00298001]
[1756568771918,1.02005044,109120.0,109110.0,0.15978001]
[1756568773332,1.02005044,109120.0,109110.0,0.15680001]
[1756568775583,1.02005044,109120.0,109110.0,0.15978001]
[1756568776848,1.10834676,109120.0,109110.0,0.15978001]
[1756568777265,0.76471971,109120.0,109110.0,0.15978001]
[1756568777481,1.02005044,109120.0,109110.0,0.15978001]
[1756568777924,0.9964447,109120.0,109110.0,0.15978001]
[1756568778151,1.02005088,109120.0,109110.0,0.15978001]
[1756568781375,1.36375171,109120.0,109110.0,0.15978001]
[1756568781585,1.36375171,109120.0,109110.0,1e-08]
[1756568781586,1.7074313,109120.0,109110.0,1e-08]
[1756568781795,1.79572762,109120.0,109110.0,1e-08]
[1756568781978,4.76079417,109120.0,109110.0,1e-08]
[1756568783132,4.75979417,109120.0,109110.0,1e-08]
[1756568783345,4.41636925,109120.0,109110.0,1e-08]
[1756568783549,4.42670658,109120.0,109110.0,1e-08]
[1756568784209,4.42770658,109120.0,109110.0,1e-08]
[1756568787937,4.45245607,109120.0,109110.0,1e-08]
[1756568788141,4.27719098,109120.0,109110.0,1e-08]
[1756568788702,4.29154875,109120.0,109110.0,1e-08]
[1756568791856,4.29158875,109120.0,109110.0,1e-08]
[1756568792065,4.13510875,109120.0,109110.0,1e-08]
[1756568792274,4.37988507,109120.0,109110.0,1e-08]
[1756568792696,3.69231817,109120.0,109110.0,1e-08]
[1756568792918,4.26496906,109120.0,109110.0,1e-08]
[1756568793130,4.23862092,109120.0,109110.0,0.00522001]
[1756568793868,4.23862092,109120.0,109110.0,0.00306001]
[1756568794937,3.55105402,109120.0,109110.0,0.00522001]
[1756568795138,4.29891266,109120.0,109110.0,1e-08]
[1756568795559,4.29891266,109120.0,109110.0,0.00306001]
[1756568796101,4.29891255,109120.0,109110.0,1e-08]
[1756568797133,4.29891255,109120.0,109110.0,0.00306001]
[1756568798097,4.3319866,109120.0,109110.0,0.00306001]
[1756568799527,4.33198768,109120.0,109110.0,1e-08]
[1756568801805,4.33198768,109120.0,109110.0,0.00306001]
[1756568805480,4.67567831,109120.0,109110.0,0.00306001]
[1756568807567,3.58404904,109120.0,109110.0,0.00522001]
[1756568807775,4.61530657,109120.0,109110.0,0.00522001]
[1756568809238,4.61530657,109120.0,109110.0,0.00306001]
[1756568810042,4.59055708,109120.0,109110.0,0.00514001]
[1756568810171,4.60888326,109120.0,109110.0,0.00514001]
[1756568810382,4.59058177,109120.0,109110.0,0.00514001]
[1756568810823,4.59058177,109120.0,109110.0,0.00306001]
[1756568811698,4.67887809,109120.0,109110.0,0.00306001]
[1756568816063,4.67887809,109120.0,109110.0,1e-08]
[1756568820672,5.81306345,109120.0,109110.0,1e-08]
[1756568820878,4.79828509,109120.0,109110.0,1e-08]
[1756568821083,4.79830138,109120.0,109110.0,1e-08]
[1756568821501,4.78108317,109120.0,109110.0,1e-08]
[1756568821701,4.79830143,109120.0,109110.0,1e-08]
[1756568823401,4.79829881,109120.0,109110.0,1e-08]
[1756568823850,4.79828942,109120.0,109110.0,1e-08]
[1756568825221,4.83976784,109120.0,109110.0,1e-08]
[1756568826111,4.83920784,109120.0,109110.0,1e-08]
[1756568827422,5.25389917,109120.0,109110.0,1e-08]
[1756568827603,5.20434595,109120.0,109110.0,1e-08]
[1756568827819,5.18999943,109120.0,109110.0,1e-08]
[1756568828460,5.87750445,109120.0,109110.0,1e-08]
[1756568829541,5.79222445,109120.0,109110.0,1e-08]
[1756568829755,5.94794445,109120.0,109110.0,1e-08]
[1756568829993,5.79222445,109120.0,109110.0,1e-08]
[1756568830203,5.9527372,109120.0,109110.0,1e-08]
[1756568830407,4.91668692,109120.0,109110.0,1e-08]
[1756568830865,4.7609608,109120.0,109110.0,1e-08]
[1756568831086,4.93101335,109120.0,109110.0,1e-08]
[1756568831340,4.9358061,109120.0,109110.0,1e-08]
[1756568831769,4.8295961,109120.0,109110.0,1e-08]
[1756568831996,4.9852761,109120.0,109110.0,1e-08]
[1756568832615,0.57330125,109110.0,109100.0,1e-08]
[1756568832818,4.39378007,109110.0,109100.0,4.761e-05]
[1756568833024,4.39579007,109110.0,109100.0,0.00212761]
[1756568833667,0.86708737,109090.0,109080.0,0.0721143]
[1756568833919,0.9929594,109090.0,109080.0,0.0721143]
[1756568834135,0.9929594,109090.0,109080.0,0.0741943]
[1756568834864,1.0205324,109090.0,109080.0,0.0751943]
[1756568835592,1.0205324,109090.0,109080.0,0.00621]
[1756568835797,1.0205324,109090.0,109080.0,0.00721]
[1756568836866,1.0205324,109090.0,109080.0,0.00621]
[1756568837024,1.0205324,109090.0,109080.0,0.00521]
[1756568837624,0.67677989,109090.0,109080.0,0.00521]
[1756568838047,1.0205324,109090.0,109080.0,0.00521]
[1756568838652,0.59432862,109090.0,109080.0,0.00521]
[1756568838850,0.59432862,109090.0,109080.0,0.50460251]
[1756568839028,0.57454848,109090.0,109080.0,0.50460251]
[1756568841044,0.57454848,109090.0,109080.0,0.16085]
[1756568841402,0.57454848,109090.0,109080.0,0.50460251]
[1756568841616,0.57453887,109090.0,109080.0,0.16085]
[1756568842183,0.57453882,109090.0,109080.0,0.16085]
[1756568842556,0.57453882,109090.0,109080.0,0.50460251]
[1756568842764,0.91829133,109090.0,109080.0,0.16085]
[1756568843880,0.91829133,109090.0,109080.0,0.00521]
[1756568844109,0.91829133,109090.0,109080.0,0.16073]
[1756568845557,0.57453882,109090.0,109080.0,0.50448251]
[1756568846758,0.57453882,109090.0,109080.0,0.16073]
[1756568847829,0.56809405,109090.0,109080.0,0.16073]
[1756568848032,0.57454085,109090.0,109080.0,0.16073]
[1756568851614,0.57454085,109090.0,109080.0,0.50448251]
[1756568851848,0.91184656,109090.0,109080.0,0.16073]
[1756568852060,0.91184656,109090.0,109080.0,0.16302189]
[1756568852465,0.91185131,109090.0,109080.0,0.16302189]
[1756568853119,0.91185096,109090.0,109080.0,0.16073]
[1756568854475,0.91185096,109090.0,109080.0,0.16049]
[1756568855390,0.56809845,109090.0,109080.0,0.16049]
[1756568856216,0.56809845,109090.0,109080.0,0.16278189]
[1756568860266,0.56809845,109090.0,109080.0,0.16049]
[1756568861386,0.56809845,109090.0,109080.0,0.16033]
[1756568861974,0.91185096,109090.0,109080.0,0.16033]
[1756568862343,0.91829804,109090.0,109080.0,0.16033]
[1756568862796,0.91829804,109090.0,109080.0,0.16262189]
[1756568863095,0.91829804,109090.0,109080.0,0.00750189]
[1756568863334,0.91829966,109090.0,109080.0,0.16262189]
[1756568864983,0.91829966,109090.0,109080.0,0.00521]
[1756568865143,0.91829966,109090.0,109080.0,0.16025]
[1756568866756,0.91829966,109090.0,109080.0,0.16254189]
[1756568867093,0.92026966,109090.0,109080.0,0.16250189]
[1756568867304,0.92026966,109090.0,109080.0,0.00208]
[1756568867517,0.18335166,109080.0,109070.0,0.6646643]
[1756568867714,0.20054387,109080.0,109070.0,1.4696643]
[1756568867917,1.23001889,109080.0,109070.0,1.23962]
[1756568868127,1.23001889,109080.0,109070.0,0.74466]
[1756568868128,1.26715326,109080.0,109070.0,0.74466]
[1756568868638,1.26715326,109080.0,109070.0,0.74566]
[1756568868850,1.26715326,109080.0,109070.0,0.74666]
[1756568869048,1.26715326,109080.0,109070.0,0.47756]
[1756568869884,1.26715326,109080.0,109070.0,0.32252]
[1756568870183,1.36230843,109080.0,109070.0,0.47752]
[1756568870448,1.36232688,109080.0,109070.0,0.47752]
[1756568870607,1.36232688,109080.0,109070.0,0.32252]
[1756568870934,1.36232688,109080.0,109070.0,0.47756]
[1756568871772,1.36232688,109080.0,109070.0,0.22756]
[1756568872761,1.36232688,109080.0,109070.0,0.07252]
[1756568872936,1.36232688,109080.0,109070.0,0.157]
[1756568872937,1.81553057,109080.0,109070.0,0.157]
[1756568873150,1.81553057,109080.0,109070.0,0.002]
[1756568873337,1.81553057,109080.0,109070.0,0.157]
[1756568873765,1.97057057,109080.0,109070.0,0.002]
[1756568873979,1.97054834,109080.0,109070.0,0.002]
[1756568874409,1.96410085,109080.0,109070.0,0.002]
[1756568874610,1.97054577,109080.0,109070.0,0.002]
[1756568874832,1.97054577,109080.0,109070.0,0.001]
[1756568875031,0.18336847,109070.0,109060.0,0.15508]
[1756568875238,0.52338529,109060.0,109050.0,0.3630343]
[1756568875481,1.23017362,109060.0,109050.0,0.2997043]
[1756568875941,1.25775062,109060.0,109050.0,0.2997043]
[1756568876146,1.25775062,109060.0,109050.0,0.1446643]
[1756568876147,1.26699622,109060.0,109050.0,0.1446643]
[1756568876360,1.26704375,109060.0,109050.0,0.2997043]
[1756568876564,1.31085613,109060.0,109050.0,0.1446643]
[1756568876763,1.31085613,109060.0,109050.0,0.2997043]
[1756568877146,1.31085613,109060.0,109050.0,0.3027643]
[1756568877853,1.26702316,109060.0,109050.0,0.3027643]
[1756568878024,1.26702316,109060.0,109050.0,0.3067643]
[1756568879087,1.26702316,109060.0,109050.0,0.1517243]
[1756568879315,1.26702316,109060.0,109050.0,0.3036243]
[1756568879524,1.26702316,109060.0,109050.0,0.23151]
[1756568880080,0.57951814,109060.0,109050.0,0.23457]
[1756568880343,0.92118065,109060.0,109050.0,0.23457]
[1756568880589,0.56025542,109060.0,109050.0,0.23457]
[1756568880821,0.56025542,109060.0,109050.0,0.48457]
[1756568881066,0.55100982,109060.0,109050.0,0.48457]
[1756568881502,0.55100982,109060.0,109050.0,1.01172461]
[1756568881933,0.55100982,109060.0,109050.0,0.82832251]
[1756568882143,0.55100982,109060.0,109050.0,0.48457]
[1756568882993,0.55100982,109060.0,109050.0,0.6679721]
[1756568883629,0.55100982,109060.0,109050.0,0.48457]
[1756568884424,0.55100982,109060.0,109050.0,0.32961]
[1756568884633,0.55100982,109060.0,109050.0,0.48465]
[1756568886365,0.55100982,109060.0,109050.0,0.6680521]
[1756568886602,0.02762453,109060.0,109050.0,1.10490155]
[1756568886821,0.02762453,109060.0,109050.0,1.12584037]
[1756568887184,4.753e-05,109060.0,109050.0,1.82584037]
[1756568888175,4.753e-05,109060.0,109050.0,2.16970981]
[1756568888384,4.753e-05,109060.0,109050.0,1.82584037]
[1756568889934,4.753e-05,109060.0,109050.0,2.09494037]
[1756568890358,4.753e-05,109060.0,109050.0,1.82584037]
[1756568890570,4.753e-05,109060.0,109050.0,1.48197093]
[1756568890812,4.753e-05,109060.0,109050.0,1.82584037]
[1756568891051,4.753e-05,109060.0,109050.0,1.85341037]
[1756568891532,4.753e-05,109060.0,109050.0,1.85337037]
[1756568891762,4.753e-05,109060.0,109050.0,1.72994093]
[1756568895865,4.753e-05,109060.0,109050.0,1.99904093]
[1756568897770,4.753e-05,109060.0,109050.0,2.34291037]
[1756568897942,4.753e-05,109060.0,109050.0,1.99904093]
[1756568898103,4.753e-05,109060.0,109050.0,2.34291037]
[1756568898896,4.753e-05,109060.0,109050.0,1.99904093]
[1756568899367,0.1833699,109070.0,109060.0,0.18338529]
[1756568899575,0.1854999,109070.0,109060.0,1.13686152]
[1756568899999,0.19629762,109080.0,109060.0,1.13686152]
[1756568900202,0.897341,109080.0,109070.0,0.2276921]
[1756568900387,0.899471,109080.0,109070.0,0.2254]
[1756568900608,0.8969221,109080.0,109070.0,0.41081847]
[1756568900810,0.71357044,109080.0,109070.0,0.41390847]
[1756568901569,0.8969221,109080.0,109070.0,0.41390847]
[1756568901933,0.8969221,109080.0,109070.0,0.41081847]
[1756568902570,0.8969221,109080.0,109070.0,1.36081847]
[1756568903214,0.8969221,109080.0,109070.0,1.17745]
[1756568904147,0.8969221,109080.0,109070.0,0.47745]
[1756568904351,0.8969221,109080.0,109070.0,0.66081847]
[1756568904806,0.8969221,109080.0,109070.0,0.66490847]
[1756568905417,1.2406448,109080.0,109070.0,0.66490847]
[1756568905823,1.2406448,109080.0,109070.0,1.36490847]
[1756568906309,1.2406448,109080.0,109070.0,1.36590847]
[1756568908388,0.71136707,109080.0,109070.0,1.36590847]
[1756568909333,0.367571,109080.0,109070.0,1.45900848]
[1756568909549,0.87652341,109090.0,109080.0,0.18335166]
[1756568909793,0.92127141,109090.0,109080.0,0.34068166]
[1756568910002,0.92340141,109090.0,109080.0,0.34377166]
[1756568910652,0.92340141,109090.0,109080.0,1.29377166]
[1756568911852,0.92340141,109090.0,109080.0,1.29068166]
[1756568912058,0.92340141,109090.0,109080.0,1.29377166]
[1756568912655,0.92340141,109090.0,109080.0,1.13849166]
[1756568912867,0.92340141,109090.0,109080.0,1.29373166]
[1756568913269,0.57747534,109090.0,109080.0,1.29373166]
[1756568913497,0.57960534,109090.0,109080.0,1.29373166]
[1756568913683,0.92332625,109090.0,109080.0,1.29377166]
[1756568914048,0.92332625,109090.0,109080.0,1.13849166]
[1756568914273,0.92332625,109090.0,109080.0,1.29381166]
[1756568915677,0.92332625,109090.0,109080.0,1.29377166]
[1756568915881,0.92332625,109090.0,109080.0,1.29068166]
[1756568916106,0.92334045,109090.0,109080.0,1.29068166]
[1756568917087,0.92334045,109090.0,109080.0,0.95205]
[1756568917346,0.92334045,109090.0,109080.0,1.10733]
[1756568917547,0.92334045,109090.0,109080.0,1.29068166]
[1756568917748,0.92334045,109090.0,109080.0,1.10729]
[1756568919263,0.92334045,109090.0,109080.0,0.95205]
[1756568919411,0.92334045,109090.0,109080.0,1.10729]
[1756568922018,0.57961954,109090.0,109080.0,1.11038]
[1756568922227,0.92334045,109090.0,109080.0,1.11038]
[1756568922435,0.92334045,109090.0,109080.0,1.10721]
[1756568925060,0.57961954,109090.0,109080.0,1.10721]
[1756568925362,0.92334045,109090.0,109080.0,1.10721]
[1756568926191,0.92334045,109090.0,109080.0,1.10713]
[1756568926985,0.92334505,109090.0,109080.0,1.10725]
[1756568927767,0.92334505,109090.0,109080.0,1.11034]
[1756568927979,0.92334505,109090.0,109080.0,0.41034]
[1756568928471,0.57749414,109090.0,109080.0,0.59369166]
[1756568928673,0.92121505,109090.0,109080.0,0.59369166]
[1756568929924,0.92317505,109090.0,109080.0,0.59369166]
[1756568930920,0.92317505,109090.0,109080.0,1.29369166]
[1756568933626,0.57945414,109090.0,109080.0,1.29369166]
[1756568933836,0.9231772,109090.0,109080.0,1.29369166]
[1756568934254,0.04477167,109090.0,109080.0,1.75133355]
[1756568934462,0.34372306,109100.0,109090.0,0.18333486]
[1756568934662,0.36092675,109100.0,109090.0,1.20391487]
[1756568934873,0.36092675,109100.0,109090.0,1.20710487]
[1756568935076,0.88992786,109100.0,109090.0,1.02377001]
[1756568935288,0.20052174,109100.0,109090.0,1.20718487]
[1756568935443,0.88796786,109100.0,109090.0,1.20718487]
[1756568935661,0.89705948,109100.0,109090.0,1.20718487]
[1756568936273,0.20961336,109100.0,109090.0,1.20718487]
[1756568936474,0.89705948,109100.0,109090.0,1.05206487]
[1756568936846,0.20961336,109100.0,109090.0,1.45718487]
[1756568937021,0.37001837,109100.0,109090.0,1.45718487]
[1756568937226,0.37001837,109100.0,109090.0,1.72928487]
[1756568937550,0.37001837,109100.0,109090.0,1.72728487]
[1756568937755,0.37001837,109100.0,109090.0,1.76903122]
[1756568937973,0.35281468,109100.0,109090.0,1.72828487]
[1756568938636,0.53613273,109100.0,109090.0,1.72828487]
[1756568938850,0.19240967,109100.0,109090.0,1.72828487]
[1756568939028,0.53613273,109100.0,109090.0,1.72828487]
[1756568939431,0.35281468,109100.0,109090.0,1.72828487]
[1756568941219,0.56306931,109110.0,109090.0,1.72828487]
[1756568941427,0.52704111,109100.0,109090.0,1.57316487]
[1756568941628,0.52704111,109100.0,109090.0,1.72816487]
[1756568942753,0.52900111,109100.0,109090.0,1.38883001]
[1756568942923,0.87576417,109100.0,109090.0,1.53856001]
[1756568943166,0.52900111,109100.0,109090.0,1.53852001]
[1756568943364,0.89295048,109100.0,109090.0,1.44458]
[1756568943576,0.92051448,109100.0,109090.0,1.44458]
[1756568943794,0.92051448,109100.0,109090.0,1.44558]
[1756568944338,0.92051448,109100.0,109090.0,1.44658]
[1756568945194,0.92051448,109100.0,109090.0,1.44666]
[1756568946490,0.92051448,109100.0,109090.0,1.29162]
[1756568946704,0.92051448,109100.0,109090.0,1.44666]
[1756568946932,0.91747448,109100.0,109090.0,1.63522486]
[1756568947156,0.04475031,109100.0,109090.0,1.72820487]
[1756568947407,0.36090937,109100.0,109090.0,1.72820487]
[1756568947621,0.36090876,109100.0,109090.0,1.72820487]
[1756568947828,0.52704111,109100.0,109090.0,1.72820487]
[1756568949310,0.52704111,109100.0,109090.0,1.45910487]
[1756568950215,0.52900111,109100.0,109090.0,1.27577001]
[1756568950437,0.87076417,109100.0,109090.0,1.45910487]
[1756568950653,0.52704111,109100.0,109090.0,1.45910487]
[1756568950869,0.34372306,109100.0,109090.0,1.45910487]
[1756568952859,0.37128606,109100.0,109090.0,1.45910487]
[1756568954583,0.027563,109100.0,109090.0,1.45910487]
[1756568955420,0.88553765,109110.0,109090.0,1.45910487]
[1756568955628,0.93028653,109110.0,109100.0,0.16040147]
[1756568956060,0.92112147,109110.0,109100.0,0.34575952]
[1756568956273,0.92112147,109110.0,109100.0,1.04346805]
[1756568956889,0.92116907,109110.0,109100.0,1.04346805]
[1756568957763,0.38479648,109110.0,109100.0,1.29346805]
[1756568958419,0.3676106,109110.0,109100.0,1.29346805]
[1756568958848,0.3676106,109110.0,109100.0,1.38644806]
[1756568959067,0.0276106,109110.0,109100.0,1.73017112]
[1756568959287,4.76e-05,109110.0,109100.0,1.38644806]
[1756568962825,4.76e-05,109110.0,109100.0,1.23152806]
[1756568963037,4.76e-05,109110.0,109100.0,1.38712806]
[1756568963432,4.76e-05,109110.0,109100.0,1.23152806]
[1756568963641,4.76e-05,109110.0,109100.0,1.38712806]
[1756568964277,0.0020376,109110.0,109100.0,1.38712806]
[1756568964489,4.76e-05,109110.0,109100.0,1.38712806]
[1756568964697,4.76e-05,109110.0,109100.0,1.38708806]
[1756568967532,0.18334885,109110.0,109100.0,1.38704806]
[1756568968247,0.52887197,109110.0,109100.0,1.22833806]
[1756568968596,0.52887197,109110.0,109100.0,1.38181806]
[1756568968800,0.53195197,109110.0,109100.0,1.38181806]
[1756568969273,0.52887197,109110.0,109100.0,1.38181806]
[1756568969704,0.52887197,109110.0,109100.0,1.38391806]
[1756568969919,0.18533885,109110.0,109100.0,1.38714806]
[1756568970131,0.34557072,109110.0,109100.0,1.38714806]
[1756568974067,4.76e-05,109110.0,109100.0,1.38714806]
[1756568974306,0.34358072,109110.0,109100.0,1.38714806]
[1756568975238,4.76e-05,109110.0,109100.0,1.38714806]
[1756568975457,0.52688197,109110.0,109100.0,1.38714806]
[1756568976526,0.52688197,109110.0,109100.0,1.23162806]
[1756568976734,0.52887197,109110.0,109100.0,1.38690806]
[1756568977640,0.18533885,109110.0,109100.0,1.38690806]
[1756568977902,0.52887197,109110.0,109100.0,1.38690806]
[1756568978105,4.76e-05,109110.0,109100.0,1.38690806]
[1756568978306,0.34358072,109110.0,109100.0,1.38690806]
[1756568979405,0.3436193,109110.0,109100.0,1.38690806]
[1756568979618,4.76e-05,109110.0,109100.0,1.38690806]
[1756568980055,0.3436193,109110.0,109100.0,1.38690806]
[1756568981908,4.76e-05,109110.0,109100.0,1.38690806]
[1756568982126,0.3436193,109110.0,109100.0,1.38690806]
[1756568982348,0.90362636,109120.0,109110.0,0.18330125]
[1756568982577,1.26637882,109120.0,109110.0,1.11467125]
[1756568983224,0.57923542,109120.0,109110.0,1.11467125]
[1756568983420,1.26637882,109120.0,109110.0,1.11467125]
[1756568983644,1.26837882,109120.0,109110.0,1.36467125]
[1756568984900,1.26837882,109120.0,109110.0,1.36144125]
[1756568985289,1.26937882,109120.0,109110.0,1.36144125]
[1756568985872,1.26937882,109120.0,109110.0,1.36467125]
[1756568986698,1.26937882,109120.0,109110.0,1.36144125]
[1756568987245,1.27583223,109120.0,109110.0,1.36144125]
[1756568987418,1.27583223,109120.0,109110.0,1.02258]
[1756568987635,1.27583223,109120.0,109110.0,1.17806]
[1756568989367,1.27583223,109120.0,109110.0,1.36435125]
[1756568990505,0.58868883,109120.0,109110.0,1.36435125]
[1756568990720,1.26940065,109120.0,109110.0,1.36136125]
[1756568990924,1.27585537,109120.0,109110.0,1.36136125]
[1756568991530,1.25864278,109120.0,109110.0,1.36136125]
[1756568991731,1.27585551,109120.0,109110.0,1.36136125]
[1756568991957,1.27585551,109120.0,109110.0,1.36435125]
[1756568994950,1.27386551,109120.0,109110.0,1.36435125]
[1756568995154,1.26741079,109120.0,109110.0,1.36435125]
[1756568995758,1.25019806,109120.0,109110.0,1.36435125]
[1756568995963,1.26741048,109120.0,109110.0,1.36435125]
[1756568997288,1.26944048,109120.0,109110.0,1.36435125]
[1756568998863,1.26944048,109120.0,109110.0,1.02258]
[1756568999069,1.27890493,109120.0,109110.0,1.17568]
[1756569000516,1.27890493,109120.0,109110.0,1.17564]
[1756569000699,1.27890493,109120.0,109110.0,0.92564]
[1756569001322,1.27890534,109120.0,109110.0,0.22564]
[1756569002899,1.27890534,109120.0,109110.0,0.07048]
[1756569003121,1.27890534,109120.0,109110.0,0.22572]
[1756569004173,1.27890284,109120.0,109110.0,0.22572]
[1756569010318,1.27890284,109120.0,109110.0,0.07048]
[1756569010515,1.27890284,109120.0,109110.0,0.22556]
[1756569011229,1.26169209,109120.0,109110.0,0.22556]
[1756569011450,1.27890023,109120.0,109110.0,0.22556]
[1756569011798,1.27890023,109120.0,109110.0,0.07048]
[1756569012020,1.64229709,109120.0,109110.0,0.22548]
[1756569012451,1.29872539,109120.0,109110.0,0.22548]
[1756569022135,1.29870486,109120.0,109110.0,0.22548]
[1756569022995,1.29870486,109120.0,109110.0,0.07048]
[1756569023192,1.29870486,109120.0,109110.0,0.22532]
[1756569023421,1.38700118,109120.0,109110.0,0.07048]
[1756569023562,1.73057288,109120.0,109110.0,0.22532]
[1756569023766,1.64227656,109120.0,109110.0,0.22532]
[1756569025112,1.29870486,109120.0,109110.0,0.22532]
[1756569028453,1.29870486,109120.0,109110.0,0.07048]
[1756569028670,1.64227656,109120.0,109110.0,0.22532]
[1756569028890,1.72346762,109120.0,109110.0,0.22532]
[1756569029541,1.81176394,109120.0,109110.0,0.22532]
[1756569032812,1.7881223,109120.0,109110.0,0.22532]
[1756569033034,1.81176341,109120.0,109110.0,0.22532]
[1756569033484,1.72346709,109120.0,109110.0,0.22532]
[1756569033821,1.72346656,109120.0,109110.0,0.07048]
[1756569034021,1.72346656,109120.0,109110.0,0.22532]
[1756569035407,1.47388612,109120.0,109110.0,0.22532]
[1756569035708,1.68476604,109120.0,109110.0,0.22532]
[1756569036705,1.68175604,109120.0,109110.0,0.22729]
[1756569036860,1.68175604,109120.0,109110.0,0.22532]
[1756569038170,1.68175604,109120.0,109110.0,0.22729]
[1756569038624,1.69078115,109120.0,109110.0,0.22729]
[1756569041055,1.69078115,109120.0,109110.0,0.22532]
[1756569041263,1.78215747,109120.0,109110.0,0.22536]
[1756569041682,1.77907747,109120.0,109110.0,0.22536]
[1756569042258,1.78215747,109120.0,109110.0,0.22536]
[1756569042849,1.69078115,109120.0,109110.0,0.22536]
[1756569043737,1.673588,109120.0,109110.0,0.22536]
[1756569043940,1.6907944,109120.0,109110.0,0.22536]
[1756569044401,1.69079441,109120.0,109110.0,0.22536]
[1756569044559,1.68231336,109120.0,109110.0,0.23028]
[1756569044761,1.68876442,109120.0,109110.0,0.23028]
[1756569045174,1.69083442,109120.0,109110.0,0.23028]
[1756569046604,1.26400166,109120.0,109110.0,0.23028]
[1756569046813,0.57685826,109120.0,109110.0,0.23028]
[1756569047027,1.2441765,109120.0,109110.0,0.23028]
[1756569048341,1.2441765,109120.0,109110.0,0.93028]
[1756569048660,1.2441765,109120.0,109110.0,1.18028]
[1756569050576,1.2441765,109120.0,109110.0,1.18024]
[1756569051490,0.55058204,109120.0,109110.0,1.18024]
[1756569051689,1.23772544,109120.0,109110.0,1.18024]